fUSD/lending_fUSD_20250519
["ID","MTS","AMOUNT","RATE_DAILY","PERIOD"]
[361685794,1747692632549,-159.84258678,0.0001176,2]
[361685797,1747692632561,-929.61320704,0.0001176,2]
[361685799,1747692632571,-1085.63232648,0.0001176,2]
[361685801,1747692632580,-1071.35316873,0.0001176,2]
[361685803,1747692632589,-1116.1659151,0.0001176,2]
[361685805,1747692632598,-916.6510231,0.0001176,2]
[361685807,1747692632608,-626.59,0.00011874,2]
[361685809,1747692632618,-150.99,0.00011891,2]
[361685811,1747692632627,-150.99,0.00011891,2]
[361685813,1747692632637,-192.57718823,0.00011891,2]
[361685814,1747692632646,-150.0,0.00011894,2]
[361685816,1747692632655,-1000.0,0.00011898,2]
[361685817,1747692632665,-5515.64558415,0.000119,2]
[361685818,1747692632676,-1231.85132041,0.000119,2]
[361685819,1747692632687,-578.59140228,0.000119,2]
[361685820,1747692632699,-3683.31779316,0.000119,2]
[361685821,1747692632712,-576.32818426,0.000119,2]
[361685822,1747692632721,-178.15918207,0.000119,2]
[361685823,1747692632730,-3266.8857692,0.000119,2]
[361685824,1747692632742,-188.69227093,0.000119,2]
[361685825,1747692632751,-3266.88576914,0.00011903,2]
[361685826,1747692632760,-3266.88576914,0.00011906,2]
[361685827,1747692632769,-3165.793,0.00011907,2]
[361685828,1747692632779,-193.025,0.00011907,2]
[361685829,1747692632788,-3266.88576914,0.00011909,2]
[361685830,1747692632798,-3266.88576914,0.00011912,2]
[361685831,1747692632807,-3266.88576914,0.00011914,2]
[361685832,1747692632816,-3266.88576914,0.00011917,2]
[361685833,1747692632825,-3266.88576914,0.0001192,2]
[361685834,1747692632834,-3266.88576914,0.00011923,2]
[361685835,1747692632843,-190.0,0.00011924,2]
[361685836,1747692632851,-3266.88576914,0.00011926,2]
[361685837,1747692632861,-362.5409392,0.00011926,2]
[361685838,1747692632870,-161.6410487,0.00011926,2]
[361685839,1747692632879,-1382.86959516,0.00011926,2]
[361685840,1747692632889,-267.17655162,0.00011949,2]
[361685841,1747692632898,-225.05193141,0.00011949,2]
[361685842,1747692632907,-233.77362867,0.00011949,2]
[361685843,1747692632917,-145115.77914056,0.0001195,2]
[361685844,1747692632926,-500.0,0.00011973,2]
[361685845,1747692632937,-114252.0207191,0.00011991,2]
[361685846,1747692632947,-646.5028849,0.00011991,2]
[361685847,1747692632956,-478.0439661,0.00011991,2]
[361685848,1747692632966,-3074.0391189,0.00011991,2]
[361685849,1747692632975,-5017.9075243,0.00011991,2]
[361685850,1747692632986,-8832.9546425,0.00011991,2]
[361685851,1747692632995,-150.0,0.00011999,2]
[361685852,1747692633005,-150.0,0.00011999,2]
[361685853,1747692633016,-500.0,0.00011999,2]
[361685854,1747692633026,-500.0,0.00011999,2]
[361685855,1747692633036,-524.0,0.00011999,2]
[361685856,1747692633046,-876.0,0.00011999,2]
[361685857,1747692633056,-190.58333394,0.00011999,2]
[361685858,1747692633066,-229.64006973,0.00011999,2]
[361685859,1747692633076,-500.0,0.00011999,2]
[361685860,1747692633086,-13487.06491125,0.00012,2]
[361685861,1747692633099,-4906.28337191,0.00012,2]
[361685862,1747692633111,-116595.04130841,0.00012,2]
[361685863,1747692633123,-75214.11520668,0.00012,2]
[361685864,1747692633134,-5631.21966337,0.00012,2]
[361685865,1747692633172,-4220.08736,0.00012,2]
[361685866,1747692633184,-415.87469936,0.00012,2]
[361685867,1747692633227,-929.25693706,0.00012,2]
[361685868,1747692633239,-556.26072989,0.00012,2]
[361685869,1747692633250,-1800.0,0.00012,2]
[361685870,1747692633284,-430.25086577,0.00012,2]
[361685874,1747692637866,-30353.22962157,0.00012,2]
[361685875,1747692637925,-349.03655998,0.00012,2]
[361685876,1747692637936,-26536.75640405,0.00012,2]
[361685877,1747692637985,-380980.41524767,0.00012,2]
[361685878,1747692637995,-254.11824423,0.00012,2]
[361685879,1747692638004,-187269.41539725,0.00012,2]
[361685880,1747692638014,-428.60978013,0.00012,2]
[361685881,1747692638025,-24944.34423512,0.00012,2]
[361685882,1747692638085,-8431.1612707,0.00012,2]
[361685885,1747692638205,-519.750011,0.00012,2]
[361685886,1747692638216,-1068.21900387,0.00012,2]
[361685887,1747692638228,-534.82997,0.00012,2]
[361686014,1747692640032,-19816.92653172,0.00012,2]
[361686015,1747692640125,-111.65138949,0.00012,2]
[361686016,1747692640259,-577.84548705,0.00012,2]
[361686017,1747692640283,-16334.38412226,0.00012,2]
[361686018,1747692640294,-1296.07236864,0.00012,2]
[361686019,1747692640317,-561.74801864,0.00012,2]
[361686020,1747692640455,-2200.0,0.00012,2]
[361686021,1747692640518,-8064.3617255,0.00012,2]
[361686023,1747692640543,-7275.48598137,0.00012,2]
[361686025,1747692640555,-11104.40000003,0.00012,2]
[361686027,1747692640567,-18577.6464,0.00012,2]
[361686039,1747692643067,-18423.47796438,0.00012,2]
[361686040,1747692643118,-557.084731,0.00012,2]
[361686041,1747692643130,-947396.47161347,0.00012,2]
[361686042,1747692643139,-235298.94715046,0.00012,2]
[361686043,1747692643200,-5972.32283216,0.00012,2]
[361686200,1747692645963,-500.0,0.00011894,2]
[361686201,1747692645976,-500.0,0.00011894,2]
[361686202,1747692645986,-500.0,0.00011894,2]
[361686203,1747692645995,-500.0,0.00011894,2]
[361686204,1747692646005,-5702.93163941,0.00012,2]
[361686205,1747692646117,-1142.80360592,0.00012,2]
[361686206,1747692646129,-1599.8699992,0.00012,2]
[361686813,1747693194717,162.72,0.00010994,2]
[361686814,1747693194916,162.72,0.00011004,2]
[361686815,1747693195131,162.72,0.00011013,2]
[361686816,1747693195337,162.72,0.00011022,2]
[361686817,1747693195552,162.72,0.00011031,2]
[361686818,1747693195744,162.72,0.0001104,2]
[361686819,1747693195946,162.72,0.00011049,2]
[361686820,1747693243247,1000.0,0.00011052,2]
[361686821,1747693308629,1279.99,9.05e-05,2]
[361686822,1747693319687,165.37,0.00010963,2]
[361686823,1747693349289,2867.97,0.00010968,2]
[361686825,1747693555091,-234.19704442,0.000113,2]
[361686826,1747693555112,-198.95118529,0.000113,2]
[361686827,1747693573127,250.0,0.00011029,2]
[361686828,1747693640152,-1.04881471,0.000113,2]
[361686829,1747693640173,-250.0,0.00011301,2]
[361686830,1747693640197,-200.0,0.00011301,2]
[361686831,1747693640218,-138.06165639,0.00011301,2]
[361686832,1747693681560,150.052006,0.000273,120]
[361686833,1747693682876,150.052006,0.000273,120]
[361686834,1747693683968,150.052006,0.000273,120]
[361686835,1747693685062,150.052006,0.000273,120]
[361686836,1747693686092,150.052006,0.000273,120]
[361686838,1747693729466,150.052006,0.000273,120]
[361686839,1747693730541,150.052006,0.000273,120]
[361686840,1747693730996,150.052006,0.000273,120]
[361686841,1747693731872,150.052006,0.000273,120]
[361686842,1747693732701,150.052006,0.000273,120]
[361686852,1747693832170,-175.22834361,0.00011301,2]
[361686853,1747693832182,-145.06206903,0.00011307,2]
[361686854,1747693832193,-54.93793097,0.00011307,2]
[361686855,1747693832203,-1279.99,0.00011314,2]
[361686856,1747693832212,-200.0,0.00011336,2]
[361686857,1747693832222,-189.6,0.00011566,2]
[361686858,1747693832231,-864.76119748,0.00011566,2]
[361686859,1747693832240,-698.0,0.00011872,2]
[361686860,1747693832249,-500.0,0.00011873,2]
[361686861,1747693832258,-500.0,0.00011873,2]
[361686862,1747693832268,-500.0,0.00011873,2]
[361686863,1747693832277,-500.0,0.00011873,2]
[361686864,1747693832286,-150.0,0.00011894,2]
[361686865,1747693832296,-500.0,0.00011895,2]
[361686866,1747693832305,-500.0,0.00011895,2]
[361686867,1747693832314,-500.0,0.00011895,2]
[361686868,1747693832323,-500.0,0.00011895,2]
[361686869,1747693832332,-500.0,0.00011895,2]
[361686870,1747693832341,-500.0,0.00011895,2]
[361686871,1747693832350,-500.0,0.00011895,2]
[361686872,1747693832359,-500.0,0.00011895,2]
[361686873,1747693832368,-500.0,0.00011895,2]
[361686874,1747693832378,-500.0,0.00011895,2]
[361686875,1747693832386,-54.00618665,0.00011895,2]
[361686876,1747693832441,-445.99381335,0.00011895,2]
[361686877,1747693832451,-500.0,0.00011895,2]
[361686878,1747693832460,-500.0,0.00011895,2]
[361686879,1747693832470,-500.0,0.00011895,2]
[361686880,1747693832479,-500.0,0.00011895,2]
[361686881,1747693832489,-500.0,0.00011895,2]
[361686882,1747693832498,-447.81392434,0.00011895,2]
[361686883,1747693832508,-500.0,0.00011895,2]
[361686884,1747693832517,-500.0,0.00011895,2]
[361686885,1747693832526,-42.2552946,0.00011895,2]
[361686894,1747693832718,-457.7447054,0.00011895,2]
[361686896,1747693832727,-109.28315021,0.00011895,2]
[361686898,1747693832738,-390.71684979,0.00011895,2]
[361686900,1747693832747,-500.0,0.00011895,2]
[361686902,1747693832756,-500.0,0.00011895,2]
[361686904,1747693832765,-28.701555,0.00011895,2]
[361686907,1747693832776,-471.298445,0.00011895,2]
[361686909,1747693832785,-500.0,0.00011895,2]
[361686910,1747693832794,-124.84756945,0.00011895,2]
[361686913,1747693832805,-375.15243055,0.00011895,2]
[361686915,1747693832814,-450.0,0.00011895,2]
[361686917,1747693832823,-500.0,0.00011895,2]
[361686919,1747693832832,-500.0,0.00011895,2]
[361686921,1747693832841,-500.0,0.00011895,2]
[361686967,1747693833268,-500.0,0.00011895,2]
[361686970,1747693833288,-500.0,0.00011895,2]
[361686972,1747693833297,-500.0,0.00011895,2]
[361686974,1747693833307,-500.0,0.00011895,2]
[361686976,1747693833317,-500.0,0.00011895,2]
[361686978,1747693833326,-218.24937241,0.00011895,2]
[361687012,1747693833827,-173.45076242,0.00011895,2]
[361687014,1747693833836,-500.0,0.00011895,2]
[361687016,1747693833845,-426.54923758,0.00011895,2]
[361687019,1747693833857,-73.45076242,0.00011895,2]
[361687021,1747693833866,-500.0,0.00011895,2]
[361687023,1747693833875,-500.0,0.00011895,2]
[361687025,1747693833885,-500.0,0.00011895,2]
[361687027,1747693833894,-500.0,0.00011895,2]
[361687029,1747693833903,-500.0,0.00011895,2]
[361687031,1747693833912,-500.0,0.00011895,2]
[361687033,1747693833922,-500.0,0.00011895,2]
[361687035,1747693833931,-500.0,0.00011895,2]
[361687037,1747693833940,-500.0,0.00011895,2]
[361687039,1747693833949,-500.0,0.00011895,2]
[361687041,1747693833959,-500.0,0.00011895,2]
[361687043,1747693833968,-360.13751458,0.00011895,2]
[361687045,1747693833979,-139.86248542,0.00011895,2]
[361687047,1747693833988,-500.0,0.00011895,2]
[361687049,1747693833997,-407.99062716,0.00011895,2]
[361687056,1747693834059,-92.00937284,0.00011895,2]
[361687058,1747693834068,-500.0,0.00011895,2]
[361687060,1747693834077,-500.0,0.00011895,2]
[361687062,1747693834086,-500.0,0.00011895,2]
[361687064,1747693834095,-500.0,0.00011895,2]
[361687066,1747693834104,-214.35289469,0.00011896,2]
[361687068,1747693834115,-398.05286501,0.00011896,2]
[361687070,1747693834126,-840.0,0.00011896,2]
[361687512,1747693838600,-1413.5702403,0.00011896,2]
[361687515,1747693838609,-190.725,0.00011896,2]
[361687517,1747693838618,-22865.31890889,0.000119,2]
[361687723,1747693840568,-322.54179362,0.000119,2]
[361687729,1747693840618,-4246.14419749,0.000119,2]
[361687731,1747693840627,-519.69174757,0.000119,2]
[361687733,1747693840637,-178.15918206,0.000119,2]
[361687735,1747693840647,-40533.33083712,0.000119,2]
[361687737,1747693840656,-166.99598239,0.000119,2]
[361687739,1747693840666,-241.69395946,0.000119,2]
[361687741,1747693840676,-921.91306344,0.000119,2]
[361687744,1747693840686,-502.37137733,0.00011973,2]
[361687746,1747693840696,-193.54,0.00011982,2]
[361687747,1747693840705,-193.54,0.0001199,2]
[361687750,1747693840715,-193.54,0.0001199,2]
[361687752,1747693840725,-193.54,0.0001199,2]
[361687754,1747693840734,-193.54,0.0001199,2]
[361687756,1747693840743,-193.54,0.0001199,2]
[361687758,1747693840753,-193.54,0.0001199,2]
[361687760,1747693840762,-193.54,0.0001199,2]
[361687762,1747693840772,-193.54,0.0001199,2]
[361687763,1747693840781,-193.54,0.0001199,2]
[361687765,1747693840790,-9699.51063739,0.0001199,2]
[361687767,1747693840799,-152.40052481,0.0001199,2]
[361687769,1747693840808,-16436.7968218,0.00011991,2]
[361687771,1747693840818,-8911.2006828,0.00011991,2]
[361687773,1747693840827,-1897.3410881,0.00011991,2]
[361687775,1747693840836,-390.49429275,0.00011991,2]
[361687777,1747693840845,-1645.1105218,0.00011991,2]
[361687779,1747693840855,-2624.2241333,0.00011991,2]
[361687781,1747693840864,-16248.203204,0.00011991,2]
[361687783,1747693840873,-164181.6885076,0.00011991,2]
[361687785,1747693840882,-249.79601542,0.00011991,2]
[361687787,1747693840891,-240.58177997,0.00011991,2]
[361687789,1747693840901,-1265.2766812,0.00011992,2]
[361687791,1747693840910,-150.052007,0.00011998,2]
[361687793,1747693840919,-150.052007,0.00011998,2]
[361687795,1747693840928,-150.052007,0.00011998,2]
[361687797,1747693840938,-150.052007,0.00011998,2]
[361687799,1747693840948,-150.052007,0.00011998,2]
[361687801,1747693840958,-150.052007,0.00011998,2]
[361687803,1747693840967,-150.0,0.00011999,2]
[361687805,1747693840978,-150.0,0.00011999,2]
[361687807,1747693840987,-150.0,0.00011999,2]
[361687809,1747693840996,-500.0,0.00011999,2]
[361687811,1747693841007,-248.38910057,0.00012,2]
[361687813,1747693841016,-358853.27001341,0.00012,2]
[361687815,1747693841025,-4577959.23579499,0.00012,2]
[361687821,1747693841075,-4175.6,0.00012,2]
[361687856,1747693841399,-1598.57692728,0.00012,2]
[361687861,1747693841437,-52726.0656417,0.00012,2]
[361688082,1747693843422,-19295.2,0.00012,2]
[361688084,1747693843433,-3602.0,0.00012,2]
[361688387,1747693846239,-1178.600015,0.00012,2]
[361688396,1747693846325,-5157.5,0.00012,2]
[361688406,1747693846413,-8292.93785819,0.00012,2]
[361692335,1747694014531,627.67,0.00011035,2]
[361692336,1747694202826,884.55,0.00011106,2]
[361692337,1747694277463,200.78,0.00011106,2]
[361692338,1747694333723,1151.99,9.188e-05,2]
[361692339,1747694350026,1000.0,0.00011105,2]
[361692340,1747694351280,202.0,0.00011069,2]
[361692341,1747694419956,152.55,0.00011039,2]
[361692342,1747694420465,152.55,0.00011057,2]
[361692343,1747694420595,152.55,0.00011076,2]
[361692344,1747694420842,152.55,0.00011094,2]
[361692345,1747694501217,202.0,0.00011069,2]
[361692346,1747694593433,2000.0,0.0001098,2]
[361692347,1747694593563,500.0,0.00010987,2]
[361692348,1747694795937,-323.02603161,0.00011233,2]
[361692349,1747694799590,-223.14565518,0.00011233,2]
[361692350,1747694801054,-201.0,0.00011233,2]
[361692351,1747694803175,-201.0,0.00011233,2]
[361692352,1747694807180,-393.20233347,0.00011233,2]
[361692353,1747694810033,-240.90543288,0.00011233,2]
[361692354,1747694811100,-192.70470849,0.00011233,2]
[361692355,1747694813772,-90.32583837,0.00011233,2]
[361692356,1747694898704,3868.45,0.00010856,2]
[361692360,1747694960437,510.94,0.0001086,2]
[361692365,1747695025972,1465.67,0.00010795,2]
[361692366,1747695032682,-1176.709548,0.00011266,2]
[361692367,1747695032692,-200.0,0.00011294,2]
[361692369,1747695032703,-200.0,0.00011323,2]
[361692370,1747695032712,-261.89291555,0.00011352,2]
[361692371,1747695032722,-200.0,0.00011375,2]
[361692372,1747695032732,-745.20262972,0.00011452,2]
[361692374,1747695032745,-406.78737028,0.00011452,2]
[361692376,1747695032754,-189.25,0.00011481,2]
[361692378,1747695032764,-173.36482972,0.00011507,2]
[361692386,1747695033292,-2577.63517028,0.00011507,2]
[361692387,1747695033303,-261.89291554,0.00011566,2]
[361692388,1747695033313,-128.14002994,0.00011599,2]
[361692389,1747695033326,-1071.85997006,0.00011599,2]
[361692390,1747695033336,-1453.0,0.000116,2]
[361692391,1747695033345,-250.0,0.00011676,2]
[361692392,1747695033355,-300.0,0.00011683,2]
[361692393,1747695033365,-846.7453392,0.00011684,2]
[361692394,1747695033374,-500.0,0.00011773,2]
[361692395,1747695033383,-500.0,0.00011773,2]
[361692396,1747695033393,-500.0,0.00011773,2]
[361692397,1747695033403,-515.62792819,0.00011773,2]
[361692398,1747695033413,-500.0,0.00011773,2]
[361692399,1747695033422,-449.92795881,0.00011773,2]
[361692400,1747695033431,-507.04838419,0.00011773,2]
[361692401,1747695033440,-500.0,0.00011773,2]
[361692402,1747695033449,-500.0,0.00011773,2]
[361692403,1747695033459,-461.48676589,0.00011773,2]
[361692404,1747695033468,-348.14329467,0.00011773,2]
[361692405,1747695033480,-151.85670533,0.00011773,2]
[361692406,1747695033490,-261.89291554,0.0001178,2]
[361692407,1747695033499,-209.67348281,0.0001178,2]
[361692408,1747695033509,-6993.48861406,0.00011788,2]
[361692409,1747695033538,-3081.4749719,0.00011788,2]
[361692410,1747695033547,-63.56852053,0.00011789,2]
[361692411,1747695033598,-117.89046903,0.00011789,2]
[361692412,1747695033607,-389.2479066,0.00011789,2]
[361692413,1747695033617,-500.0,0.00011789,2]
[361692414,1747695033626,-500.0,0.00011789,2]
[361692415,1747695033637,-500.0,0.00011789,2]
[361692416,1747695033646,-500.0,0.00011789,2]
[361692417,1747695033655,-500.0,0.00011789,2]
[361692418,1747695033664,-500.0,0.00011789,2]
[361692419,1747695033674,-500.0,0.00011789,2]
[361692420,1747695033684,-500.0,0.00011789,2]
[361692421,1747695033693,-500.0,0.00011789,2]
[361692422,1747695033702,-500.0,0.00011789,2]
[361692423,1747695033711,-500.0,0.00011789,2]
[361692424,1747695033721,-500.0,0.00011789,2]
[361692425,1747695033731,-500.0,0.00011789,2]
[361692426,1747695033740,-500.0,0.00011789,2]
[361692427,1747695033749,-500.0,0.00011789,2]
[361692428,1747695033759,-500.0,0.00011789,2]
[361692429,1747695033769,-500.0,0.00011789,2]
[361692430,1747695033779,-500.0,0.00011789,2]
[361692431,1747695033789,-500.0,0.00011789,2]
[361692432,1747695033799,-500.0,0.00011789,2]
[361692433,1747695033809,-500.0,0.00011789,2]
[361692434,1747695033819,-500.0,0.00011789,2]
[361692435,1747695033828,-500.0,0.00011789,2]
[361692436,1747695033838,-500.0,0.00011789,2]
[361692437,1747695033847,-500.0,0.00011789,2]
[361692438,1747695033856,-500.0,0.00011789,2]
[361692439,1747695033866,-500.0,0.00011789,2]
[361692440,1747695033875,-500.0,0.00011789,2]
[361692441,1747695033884,-500.0,0.00011789,2]
[361692442,1747695033893,-500.0,0.00011789,2]
[361692443,1747695033902,-500.0,0.00011789,2]
[361692444,1747695033912,-500.0,0.00011789,2]
[361692445,1747695033921,-500.0,0.00011789,2]
[361692446,1747695033931,-500.0,0.00011789,2]
[361692447,1747695033940,-500.0,0.00011789,2]
[361692448,1747695033950,-500.0,0.00011789,2]
[361692449,1747695033960,-500.0,0.00011789,2]
[361692450,1747695033969,-500.0,0.00011789,2]
[361692451,1747695033978,-500.0,0.00011789,2]
[361692452,1747695033987,-500.0,0.00011789,2]
[361692453,1747695033997,-500.0,0.00011789,2]
[361692454,1747695034006,-500.0,0.00011789,2]
[361692455,1747695034015,-500.0,0.00011789,2]
[361692456,1747695034025,-429.4663817,0.00011789,2]
[361692457,1747695034034,-500.0,0.00011789,2]
[361692458,1747695034043,-500.0,0.00011789,2]
[361692459,1747695034053,-500.0,0.00011789,2]
[361692460,1747695034062,-500.0,0.00011789,2]
[361692461,1747695034071,-500.0,0.00011789,2]
[361692462,1747695034081,-500.0,0.00011789,2]
[361692463,1747695034090,-500.0,0.00011789,2]
[361692464,1747695034099,-500.0,0.00011789,2]
[361692465,1747695034108,-500.0,0.00011789,2]
[361692466,1747695034118,-500.0,0.00011789,2]
[361692467,1747695034127,-500.0,0.00011789,2]
[361692468,1747695034136,-500.0,0.00011789,2]
[361692469,1747695034145,-500.0,0.00011789,2]
[361692470,1747695034155,-500.0,0.00011789,2]
[361692471,1747695034164,-500.0,0.00011789,2]
[361692472,1747695034174,-500.0,0.00011789,2]
[361692473,1747695034182,-500.0,0.00011789,2]
[361692474,1747695034191,-500.0,0.00011789,2]
[361692475,1747695034200,-19269.17322332,0.0001179,2]
[361692476,1747695034209,-810.8227,0.0001179,2]
[361692477,1747695034218,-317.7523,0.0001179,2]
[361692478,1747695034227,-226.8743,0.0001179,2]
[361692479,1747695034236,-209.67348275,0.00011797,2]
[361692480,1747695034245,-2363.02559167,0.000118,2]
[361692481,1747695034254,-19269.17322325,0.00011802,2]
[361692482,1747695034263,-2363.02559167,0.00011811,2]
[361692483,1747695034273,-150.0,0.00011813,2]
[361692484,1747695034283,-209.67348275,0.00011814,2]
[361692485,1747695034292,-19269.17322325,0.00011814,2]
[361692486,1747695034301,-2363.02559167,0.00011822,2]
[361692487,1747695034310,-13120.0159644,0.00011827,2]
[361692488,1747695034322,-2553.33000917,0.00011827,2]
[361692489,1747695034364,-3595.82724968,0.00011827,2]
[361692490,1747695034374,-209.67348275,0.00011831,2]
[361692491,1747695034384,-669.36898627,0.00011833,2]
[361692492,1747695034396,-388.00883751,0.00011833,2]
[361692493,1747695034407,-1305.64776789,0.00011833,2]
[361692494,1747695034417,-697.00388195,0.00011839,2]
[361692495,1747695034464,-598.20233049,0.00011839,2]
[361692496,1747695034475,-345.54289624,0.00011839,2]
[361692497,1747695034485,-3827.40151439,0.00011839,2]
[361692498,1747695034497,-574.42573208,0.00011839,2]
[361692499,1747695034508,-1952.72595287,0.00011839,2]
[361692500,1747695038543,-265.2575338,0.00011526,2]
[361692501,1747695038554,-581.86313578,0.00011526,2]
[361692502,1747695038563,-2500.0,0.00011773,2]
[361692503,1747695038574,-996.90405218,0.00011839,2]
[361692509,1747695038780,250.0,0.0001086,2]
[361692510,1747695040620,-10276.96686305,0.00011839,2]
[361692511,1747695040630,-2363.02559167,0.00011844,2]
[361692512,1747695040640,-209.67348275,0.00011849,2]
[361692513,1747695040649,-187.02358613,0.0001185,2]
[361692514,1747695040658,-249.79601542,0.0001185,2]
[361692515,1747695040668,-240.58177997,0.0001185,2]
[361692516,1747695040679,-19269.17322325,0.00011851,2]
[361692517,1747695040689,-273.52,0.00011853,2]
[361692518,1747695040699,-2363.02559167,0.00011856,2]
[361692519,1747695040708,-273.52,0.0001186,2]
[361692520,1747695040717,-19269.17322325,0.00011863,2]
[361692521,1747695040726,-273.52,0.00011866,2]
[361692522,1747695040735,-2363.02559167,0.00011867,2]
[361692523,1747695040745,-19483.58691764,0.0001187,2]
[361692524,1747695040754,-273.52,0.0001187,2]
[361692525,1747695040764,-273.52,0.0001187,2]
[361692526,1747695040774,-273.52,0.0001187,2]
[361692527,1747695040785,-500.0,0.00011873,2]
[361692528,1747695040795,-619.553045,0.00011873,2]
[361692529,1747695040804,-500.0,0.00011873,2]
[361692530,1747695040814,-533.40563773,0.00011873,2]
[361692531,1747695040823,-215.81506933,0.00011873,2]
[361692532,1747695040832,-155.71211763,0.00011873,2]
[361692533,1747695040842,-500.0,0.00011873,2]
[361692534,1747695040852,-500.0,0.00011873,2]
[361692535,1747695040861,-500.0,0.00011873,2]
[361692536,1747695040870,-500.0,0.00011873,2]
[361692537,1747695040880,-500.0,0.00011873,2]
[361692538,1747695040890,-19269.17322325,0.00011876,2]
[361692539,1747695040900,-273.52,0.00011878,2]
[361692540,1747695040910,-2363.02559167,0.00011878,2]
[361692541,1747695040919,-585.55226982,0.00011879,2]
[361692542,1747695040929,-65818.83846987,0.0001188,2]
[361692543,1747695040938,-1960.78255532,0.0001188,2]
[361692545,1747695040948,-273.52,0.0001188,2]
[361692546,1747695040957,-19269.17322325,0.00011888,2]
[361692547,1747695040968,-19565.2,0.0001189,2]
[361692548,1747695040977,-273.52,0.0001189,2]
[361692549,1747695040988,-1418.7044,0.0001189,2]
[361692550,1747695040998,-1000.0,0.0001189,2]
[361692551,1747695041007,-263.45296608,0.00011891,2]
[361692552,1747695041016,-1759.4704,0.000119,2]
[361692553,1747695041026,-482.5176,0.000119,2]
[361692554,1747695041036,-562.91823425,0.000119,2]
[361692555,1747695041046,-156.53669,0.000119,2]
[361692556,1747695041055,-712.63672826,0.000119,2]
[361692557,1747695041064,-239.5686,0.000119,2]
[361692558,1747695041074,-5000.0,0.000119,2]
[361692559,1747695041083,-166.55221696,0.000119,2]
[361692560,1747695041093,-19269.17322325,0.000119,2]
[361692561,1747695041103,-164.93137965,0.000119,2]
[361692562,1747695041112,-5704.96592044,0.000119,2]
[361692563,1747695041121,-181.81846676,0.000119,2]
[361692564,1747695041131,-857.75656904,0.000119,2]
[361692565,1747695041139,-3176.77959255,0.000119,2]
[361692566,1747695041149,-1250.0,0.0001197,2]
[361692567,1747695041160,-897.43740402,0.0001197,2]
[361692568,1747695041169,-507.0,0.00011973,2]
[361692569,1747695041178,-273.52,0.00011978,2]
[361692570,1747695041187,-3310.021,0.00011988,2]
[361692571,1747695041196,-191.458,0.00011988,2]
[361692572,1747695041206,-1025.84140583,0.0001199,2]
[361692573,1747695041215,-1025.84140583,0.0001199,2]
[361692574,1747695041225,-1025.84140583,0.0001199,2]
[361692575,1747695041234,-3455.1204634,0.00011991,2]
[361692576,1747695041244,-2106.6857894,0.00011991,2]
[361692577,1747695041253,-19422.6618728,0.00011991,2]
[361692578,1747695041262,-591.9942423,0.00011991,2]
[361692579,1747695041272,-2324.3197912,0.00011991,2]
[361692580,1747695041282,-7052.9735782,0.00011991,2]
[361692581,1747695041291,-21937.6946394,0.00011991,2]
[361692582,1747695041299,-90022.241056,0.00011991,2]
[361692583,1747695041309,-213.075903,0.00011991,2]
[361692584,1747695041320,-150.0,0.00011999,2]
[361692585,1747695041330,-150.0,0.00011999,2]
[361692586,1747695041340,-150.0,0.00011999,2]
[361692587,1747695041351,-500.0,0.00011999,2]
[361692588,1747695041362,-150.0,0.00011999,2]
[361692589,1747695041372,-150.0,0.00011999,2]
[361692590,1747695041382,-150.0,0.00011999,2]
[361692591,1747695041392,-150.0,0.00011999,2]
[361692592,1747695041402,-500.0,0.00011999,2]